fUSD/lending_fUSD_20251210
["ID","MTS","AMOUNT","RATE_DAILY","PERIOD"]
[398161435,1765409477993,-2491.581834,0.000417,120]
[398161436,1765409478002,-2491.581834,0.000417,120]
[398161437,1765409478012,-2491.581834,0.000417,120]
[398161438,1765409478021,-2491.581834,0.000417,120]
[398161439,1765409478030,-2491.581838,0.000417,120]
[398161440,1765409478039,-151.0,0.000417,120]
[398161441,1765409478049,-151.0,0.000417,120]
[398161442,1765409478058,-151.0,0.000417,120]
[398161443,1765409478067,-151.0,0.000417,120]
[398161444,1765409478075,-151.0,0.000417,120]
[398161445,1765409478084,-151.0,0.000417,120]
[398161446,1765409478093,-151.0,0.000417,120]
[398161447,1765409478102,-151.0,0.000417,120]
[398161448,1765409478112,-151.0,0.000417,120]
[398161449,1765409478122,-151.0,0.000417,60]
[398161450,1765409478131,-151.0,0.000417,60]
[398161451,1765409478141,-151.0,0.000417,60]
[398161452,1765409478150,-151.0,0.000417,60]
[398161453,1765409478160,-151.0,0.000417,60]
[398161454,1765409478169,-151.0,0.000417,60]
[398161455,1765409478178,-151.0,0.000417,60]
[398161456,1765409478188,-274.50588983,0.000417,60]
[398161457,1765409478199,-151.0,0.000417,120]
[398161458,1765409478209,-151.0,0.000417,120]
[398161459,1765409478219,-151.0,0.000417,120]
[398161460,1765409478230,-151.0,0.000417,120]
[398161461,1765409478240,-151.0,0.000417,120]
[398161462,1765409478250,-189.90068,0.000417,120]
[398161463,1765409478260,-151.0,0.000417,120]
[398161464,1765409478269,-151.0,0.000417,120]
[398161465,1765409478278,-151.0,0.000417,120]
[398161466,1765409478287,-151.0,0.000417,120]
[398161467,1765409478299,-151.0,0.000417,120]
[398161468,1765409478310,-151.0,0.000417,30]
[398161469,1765409478319,-151.0,0.000417,30]
[398161470,1765409478329,-151.0,0.000417,30]
[398161471,1765409478339,-151.0,0.000417,120]
[398161472,1765409478348,-184.667892,0.000417,120]
[398161473,1765409478357,-151.0,0.000417,120]
[398161474,1765409478367,-151.0,0.000417,120]
[398161475,1765409478376,-151.0,0.000417,120]
[398161476,1765409478386,-151.0,0.000417,120]
[398161477,1765409478395,-151.0,0.000417,120]
[398161478,1765409478405,-151.0,0.000417,120]
[398161479,1765409478415,-151.0,0.000417,120]
[398161480,1765409478427,-151.0,0.000417,120]
[398161481,1765409478436,-151.0,0.000417,120]
[398161482,1765409478446,-151.0,0.000417,120]
[398161483,1765409478455,-151.0,0.000417,120]
[398161484,1765409478464,-151.0,0.000417,120]
[398161485,1765409478473,-151.0,0.000417,120]
[398161486,1765409478482,-151.0,0.000417,120]
[398161487,1765409478492,-151.0,0.000417,120]
[398161488,1765409478501,-151.0,0.000417,120]
[398161489,1765409478510,-151.0,0.000417,120]
[398161490,1765409478519,-151.0,0.000417,120]
[398161491,1765409478528,-151.0,0.000417,120]
[398161492,1765409478538,-178.380988,0.000417,120]
[398161493,1765409478547,-151.0,0.000417,120]
[398161494,1765409478558,-151.0,0.000417,120]
[398161495,1765409478567,-151.0,0.000417,120]
[398161496,1765409478576,-151.0,0.000417,120]
[398161497,1765409478585,-151.0,0.000417,120]
[398161498,1765409478595,-237.110364,0.000417,120]
[398161499,1765409478605,-151.0,0.000417,120]
[398161500,1765409478614,-232.001559,0.000417,120]
[398161501,1765409478624,-151.0,0.000417,120]
[398161502,1765409478634,-151.0,0.000417,120]
[398161503,1765409478643,-151.0,0.000417,120]
[398161504,1765409478652,-151.0,0.000417,120]
[398161505,1765409478662,-151.0,0.000417,120]
[398161506,1765409478672,-151.0,0.000417,120]
[398161507,1765409478682,-228.975484,0.000417,120]
[398161508,1765409478691,-151.0,0.000417,120]
[398161509,1765409478701,-151.0,0.000417,120]
[398161510,1765409478710,-151.0,0.000417,120]
[398161511,1765409478720,-151.0,0.000417,120]
[398161512,1765409478729,-151.0,0.000417,120]
[398161513,1765409478738,-151.0,0.000417,120]
[398161514,1765409478747,-151.0,0.000417,120]
[398161515,1765409478756,-151.0,0.000417,120]
[398161516,1765409478765,-151.0,0.000417,120]
[398161517,1765409478775,-151.0,0.000417,120]
[398161518,1765409478783,-151.0,0.000417,120]
[398161519,1765409478793,-151.0,0.000417,120]
[398161520,1765409478802,-151.0,0.000417,120]
[398161521,1765409478811,-151.0,0.000417,120]
[398161522,1765409478823,-151.0,0.000417,120]
[398161523,1765409478832,-275.573125,0.000417,120]
[398161524,1765409478842,-151.0,0.000417,120]
[398161525,1765409478854,-151.0,0.000417,120]
[398161526,1765409478864,-151.0,0.000417,120]
[398161527,1765409478877,-151.0,0.000417,120]
[398161528,1765409478887,-151.0,0.000417,120]
[398161529,1765409478897,-215.85488,0.000417,120]
[398161530,1765409478907,-151.0,0.000417,120]
[398161531,1765409478916,-151.0,0.000417,60]
[398161532,1765409478928,-151.0,0.000417,120]
[398161533,1765409478938,-151.0,0.000417,60]
[398161534,1765409478948,-151.0,0.000417,120]
[398161535,1765409478959,-151.0,0.000417,120]
[398161536,1765409478970,-151.0,0.000417,120]
[398161537,1765409478981,-151.0,0.000417,120]
[398161538,1765409478991,-151.0,0.000417,120]
[398161539,1765409479001,-151.0,0.000417,120]
[398161540,1765409479011,-151.0,0.000417,120]
[398161541,1765409479021,-151.0,0.000417,120]
[398161542,1765409479031,-151.0,0.000417,120]
[398161543,1765409479042,-151.0,0.000417,120]
[398161544,1765409479053,-231.13068,0.000417,120]
[398161545,1765409479062,-151.0,0.000417,120]
[398161546,1765409479072,-151.0,0.000417,120]
[398161547,1765409479082,-1003.834987,0.000417,120]
[398161548,1765409479093,-1003.834987,0.000417,120]
[398161549,1765409479103,-1003.834987,0.000417,120]
[398161550,1765409479112,-1003.834987,0.000417,120]
[398161551,1765409479121,-1003.834987,0.000417,120]
[398161552,1765409479131,-1003.834987,0.000417,120]
[398161553,1765409479141,-1003.834987,0.000417,120]
[398161554,1765409479153,-1003.834987,0.000417,120]
[398161555,1765409479162,-1003.834987,0.000417,120]
[398161556,1765409479172,-1003.834987,0.000417,120]
[398161557,1765409479181,-151.0,0.000417,120]
[398161558,1765409479190,-1003.834987,0.000417,120]
[398161559,1765409479199,-151.0,0.000417,120]
[398161560,1765409479208,-151.0,0.000417,120]
[398161561,1765409479217,-1003.834987,0.000417,120]
[398161562,1765409479227,-151.0,0.000417,120]
[398161563,1765409479237,-151.0,0.000417,120]
[398161564,1765409479246,-1003.834987,0.000417,120]
[398161565,1765409479256,-151.0,0.000417,120]
[398161566,1765409479265,-1003.834987,0.000417,120]
[398161567,1765409479274,-1003.834987,0.000417,120]
[398161568,1765409479283,-1003.834987,0.000417,120]
[398161569,1765409479292,-1003.834987,0.000417,120]
[398161570,1765409479301,-153.974069,0.000417,120]
[398161571,1765409479310,-153.974069,0.000417,120]
[398161572,1765409479320,-1003.834987,0.000417,120]
[398161573,1765409479329,-153.974069,0.000417,120]
[398161574,1765409479338,-1003.834987,0.000417,120]
[398161575,1765409479347,-153.974069,0.000417,120]
[398161576,1765409479446,-1003.834991,0.000417,120]
[398161577,1765409479457,-153.974069,0.000417,120]
[398161578,1765409479466,-151.0,0.000417,120]
[398161579,1765409479476,-153.974069,0.000417,120]
[398161580,1765409479485,-151.0,0.000417,120]
[398161581,1765409479499,-153.974069,0.000417,120]
[398161582,1765409479508,-151.0,0.000417,120]
[398161583,1765409479518,-153.974069,0.000417,120]
[398161584,1765409479528,-151.0,0.000417,120]
[398161585,1765409479538,-153.974069,0.000417,120]
[398161586,1765409479547,-151.0,0.000417,120]
[398161587,1765409479556,-153.974069,0.000417,120]
[398161588,1765409479566,-240.780368,0.000417,120]
[398161589,1765409479576,-153.974069,0.000417,120]
[398161590,1765409479587,-153.974069,0.000417,120]
[398161591,1765409479598,-242.480195,0.000417,120]
[398161592,1765409479608,-153.974069,0.000417,120]
[398161593,1765409479618,-153.974069,0.000417,120]
[398161594,1765409479628,-153.974069,0.000417,120]
[398161595,1765409479638,-153.974069,0.000417,120]
[398161596,1765409479649,-153.974069,0.000417,120]
[398161597,1765409479658,-153.974069,0.000417,120]
[398161598,1765409479668,-153.974069,0.000417,120]
[398161599,1765409479678,-151.0,0.000417,120]
[398161600,1765409479688,-153.974076,0.000417,120]
[398161601,1765409479697,-151.0,0.000417,120]
[398161602,1765409479707,-151.0,0.000417,120]
[398161603,1765409479717,-151.0,0.000417,120]
[398161604,1765409479727,-151.0,0.000417,120]
[398161605,1765409479736,-151.0,0.000417,120]
[398161606,1765409479746,-250.991524,0.000417,120]
[398161607,1765409479755,-282.160474,0.000417,120]
[398161608,1765409479765,-282.160474,0.000417,120]
[398161609,1765409479774,-282.160474,0.000417,120]
[398161610,1765409479784,-282.160474,0.000417,120]
[398161611,1765409479793,-151.0,0.000417,120]
[398161612,1765409479802,-282.160474,0.000417,120]
[398161613,1765409479823,-282.160474,0.000417,120]
[398161614,1765409479833,-282.160474,0.000417,120]
[398161615,1765409479843,-233.22713,0.000417,120]
[398161616,1765409479857,-282.160474,0.000417,120]
[398161617,1765409479867,-282.160474,0.000417,120]
[398161618,1765409479876,-282.160474,0.000417,120]
[398161619,1765409479886,-282.160474,0.000417,120]
[398161620,1765409479897,-282.160474,0.000417,120]
[398161621,1765409479907,-282.160474,0.000417,120]
[398161622,1765409479917,-282.160474,0.000417,120]
[398161623,1765409479927,-282.160474,0.000417,120]
[398161624,1765409479938,-282.160474,0.000417,120]
[398161625,1765409479948,-282.160474,0.000417,120]
[398161626,1765409479958,-282.160474,0.000417,120]
[398161627,1765409479969,-282.160474,0.000417,120]
[398161628,1765409479979,-282.160474,0.000417,120]
[398161629,1765409479989,-151.0,0.000417,120]
[398161630,1765409480000,-151.0,0.000417,120]
[398161631,1765409480010,-151.0,0.000417,120]
[398161632,1765409480020,-151.0,0.000417,120]
[398161633,1765409480030,-151.0,0.000417,120]
[398161634,1765409480040,-151.0,0.000417,120]
[398161635,1765409480051,-151.0,0.000417,120]
[398161636,1765409480061,-151.0,0.000417,120]
[398161637,1765409480071,-221.878754,0.000417,120]
[398161638,1765409480081,-224.83692443,0.000417,31]
[398161639,1765409480090,-151.0,0.000417,120]
[398161640,1765409480100,-151.0,0.000417,120]
[398161641,1765409480110,-151.0,0.000417,120]
[398161642,1765409480120,-151.0,0.000417,120]
[398161643,1765409480130,-151.0,0.000417,120]
[398161644,1765409480140,-151.0,0.000417,5]
[398161645,1765409480151,-151.0,0.000417,120]
[398161646,1765409480161,-151.0,0.000417,5]
[398161647,1765409480172,-151.0,0.000417,120]
[398161648,1765409480182,-151.0,0.000417,120]
[398161649,1765409480192,-151.0,0.000417,5]
[398161650,1765409480203,-151.0,0.000417,120]
[398161651,1765409480212,-151.0,0.000417,120]
[398161652,1765409480223,-151.0,0.000417,5]
[398161653,1765409480233,-151.0,0.000417,120]
[398161654,1765409480243,-151.0,0.000417,120]
[398161655,1765409480253,-151.0,0.000417,5]
[398161656,1765409480264,-151.0,0.000417,120]
[398161657,1765409480275,-151.0,0.000417,120]
[398161658,1765409480285,-151.0,0.000417,5]
[398161659,1765409480295,-151.0,0.000417,120]
[398161660,1765409480305,-151.0,0.000417,120]
[398161661,1765409480315,-151.0,0.000417,5]
[398161662,1765409480325,-151.0,0.000417,120]
[398161663,1765409480335,-151.0,0.000417,120]
[398161664,1765409480349,-151.0,0.000417,120]
[398161665,1765409480366,-151.0,0.000417,120]
[398161666,1765409480376,-151.0,0.000417,120]
[398161667,1765409480386,-151.0,0.000417,120]
[398161668,1765409480397,-151.0,0.000417,120]
[398161669,1765409480408,-274.312692,0.000417,120]
[398161670,1765409480418,-151.0,0.000417,120]
[398161671,1765409480430,-151.0,0.000417,120]
[398161672,1765409480440,-151.0,0.000417,120]
[398161673,1765409480450,-151.0,0.000417,120]
[398161674,1765409480460,-151.0,0.000417,120]
[398161675,1765409480470,-286.51096,0.000417,120]
[398161676,1765409480481,-448723.43062752,0.000417,7]
[398161677,1765409480503,-8467.25462014,0.000417,7]
[398161678,1765409480515,-61054.40474999,0.000417,7]
[398161679,1765409480527,-444.81816065,0.000417,7]
[398161680,1765409481236,-205.47999283,0.00016999,2]
[398161681,1765409482813,-180.68591237,0.00016999,2]
[398161682,1765409484291,-126.56004618,0.00016999,2]
[398161683,1765409484315,-197.33604877,0.00016999,2]
[398161684,1765409487273,-76.2464086,0.00016999,2]
[398161685,1765409487296,-126.17775473,0.00016999,2]
[398161686,1765409489859,-195.38320398,0.00016999,2]
[398161687,1765409489882,-126.01483309,0.00016999,2]
[398161688,1765409491382,-375.21929409,0.00016999,2]
[398161689,1765409491409,-147.54360939,0.00016999,2]
[398161690,1765409494483,-267.43176197,0.00016999,2]
[398161691,1765409496800,-85.02462864,0.00016999,2]
[398161692,1765409496827,-197.50233846,0.00016999,2]
[398161693,1765409498753,-289.49045858,0.00016999,2]
[398161694,1765409500814,-13.00720296,0.00016999,2]
[398161695,1765409500841,-176.22021998,0.00016999,2]
[398161696,1765409502324,-164.86836713,0.00016999,2]
[398161697,1765409504376,-158.91141289,0.00016999,2]
[398161698,1765409504404,-169.04658399,0.00016999,2]
[398161702,1765409508604,-214.97346573,0.00016999,2]
[398161703,1765409510987,-115.97995028,0.00016999,2]
[398161704,1765409511013,-49.94537636,0.00016999,2]
[398161705,1765409513572,-360.97904514,0.00016999,2]
[398161706,1765409516559,-89.0755785,0.00016999,2]
[398161707,1765409516584,-154.49660182,0.00016999,2]
[398161708,1765409519091,-345.50339818,0.00016999,2]
[398161709,1765409519118,-40.95871742,0.00016999,2]
[398161710,1765409521598,-298.65693306,0.00016999,2]
[398161711,1765409523687,-160.38434952,0.00016999,2]
[398161712,1765409523713,-47.74146909,0.00016999,2]
[398161713,1765409526876,-198.82948025,0.00016999,2]
[398161714,1765409530830,-253.42905066,0.00016999,2]
[398161715,1765409530865,-288.53531446,0.00016999,2]
[398161716,1765409533349,-211.46468554,0.00016999,2]
[398161717,1765409533381,-92.31119683,0.00016999,2]
[398161718,1765409534759,-380.05709541,0.00016999,2]
[398161719,1765409537532,-27.63170776,0.00016999,2]
[398161720,1765409537559,-127.10752594,0.00016999,2]
[398161721,1765409539012,-301.74918856,0.00016999,2]
[398161722,1765409541604,-71.1432855,0.00016999,2]
[398161723,1765409541631,-112.18135881,0.00016999,2]
[398161724,1765409544240,-175.23971591,0.00016999,2]
[398161725,1765409546258,-193.85649174,0.00016999,2]
[398161726,1765409548948,-18.72243354,0.00016999,2]
[398161727,1765409548979,-223.74969164,0.00016999,2]
[398161728,1765409550551,-184.51253644,0.00016999,2]
[398161729,1765409552675,-91.73777192,0.00016999,2]
[398161730,1765409552702,-109.2413555,0.00016999,2]
[398161731,1765409555314,-161.36549056,0.00016999,2]
[398161732,1765409557340,-221.4758052,0.00016999,2]
[398161745,1765409800812,300.034358,0.00016999,2]
[398161860,1765410631418,-213.62199812,0.00017771,2]
[398161861,1765410631428,-73.35800188,0.00017772,2]
[398161862,1765410631446,-227.64199812,0.00017772,2]
[398161863,1765410631456,-500.0,0.00017772,2]
[398161864,1765410631465,-1200.0,0.00017871,2]
[398161865,1765410631474,-1200.0,0.00017872,2]
[398161866,1765410631483,-550.0,0.00017872,2]
[398161867,1765410631492,-300.0,0.00017872,2]
[398161868,1765410631501,-500.0,0.00017873,2]
[398161869,1765410631510,-500.0,0.00017873,2]
[398161870,1765410631520,-164.23320693,0.00017873,2]
[398161871,1765410631534,-335.76679307,0.00017873,2]
[398161872,1765410631543,-496.46177505,0.00017873,2]
[398161873,1765410631554,-3.82643939,0.00017873,2]
[398161874,1765410631563,-500.42181547,0.00017873,2]
[398161875,1765410631572,-500.0,0.00017873,2]
[398161876,1765410631581,-500.0,0.00017873,2]
[398161877,1765410631590,-500.0,0.00017873,2]
[398161878,1765410631599,-328.60320526,0.00017873,2]
[398161879,1765410631611,-171.39679474,0.00017873,2]
[398161880,1765410631619,-500.0,0.00017873,2]
[398161881,1765410631628,-206.48320564,0.00017873,2]
[398161882,1765410631639,-293.51679436,0.00017873,2]
[398161883,1765410631648,-500.0,0.00017873,2]
[398161884,1765410631657,-173.52564751,0.00017973,2]
[398161885,1765410631666,-159.18357586,0.00017973,2]
[398161886,1765410631675,-458.6546139,0.00017999,2]
[398161887,1765410631684,-392.68561293,0.00017999,2]
[398161889,1765410631693,-403.56637343,0.00017999,2]
[398161891,1765410631704,-96.43362657,0.00017999,2]
[398161893,1765410631714,-500.0,0.00018421,2]
[398161894,1765410631723,-500.0,0.00018421,2]
[398161895,1765410631732,-281.75680243,0.00018421,2]
[398161896,1765410631743,-218.24319757,0.00018421,2]
[398161897,1765410631751,-401.11113556,0.00018421,2]
[398161898,1765410631774,-98.88886444,0.00018421,2]
[398161899,1765410631784,-418.637015,0.00018421,2]
[398161900,1765410631795,-81.362985,0.00018421,2]
[398161901,1765410631805,-150.0,0.00018962,2]
[398161902,1765410631814,-1789.73014092,0.00019658,2]
[398161913,1765410637463,-428.55664733,0.00019658,2]
[398161916,1765410637473,-300.034358,0.0001989,2]
[398161919,1765410637482,-184.10003481,0.00021181,2]
[398161923,1765410637510,-252.52558488,0.00021181,2]
[398161929,1765410637568,-63.37438031,0.00021181,2]
[398161930,1765410637577,-500.0,0.00021918,4]
[398161931,1765410637586,-500.0,0.00021918,4]
[398161932,1765410637595,-500.0,0.00021918,4]
[398161933,1765410637604,-359.80493092,0.00021918,4]
[398161934,1765410637613,-45.06278625,0.00022782,2]
[398161935,1765410637624,-254.97157175,0.00022782,2]
[398161936,1765410637633,-250.0,0.00023756,2]
[398161937,1765410637642,-714.73,0.00024174,2]
[398161938,1765410637651,-290.29842825,0.00024174,2]
[398161939,1765410637661,-4707.47864378,0.00024174,2]
[398161940,1765410637672,-875.29292091,0.00024174,2]
[398161941,1765410637693,-57.17000706,0.00024174,2]
[398161942,1765410637702,-7002.1779932,0.00024338,2]
[398161943,1765410637713,-4304.26580569,0.00024338,2]
[398161958,1765410639498,-7851.54587128,0.00024338,2]
[398161959,1765410639509,-523.34287504,0.00024338,2]
[398161960,1765410639561,-666.08285665,0.00024338,2]
[398161961,1765410639572,-955.09302045,0.00024338,2]
[398161962,1765410639583,-6865.63692011,0.00024338,2]
[398161963,1765410639594,-817.31434984,0.00024338,2]
[398161967,1765410640124,-0.01089693,0.00024338,2]
[398161968,1765410640219,-2665.5683114,0.00024338,2]
[398161969,1765410640230,-2050.77884625,0.00024338,2]
[398161970,1765410640241,-808.44111609,0.00024338,2]
[398161971,1765410640250,-213.62199812,0.00025573,2]
[398161972,1765410640261,-300.034358,0.00025673,2]
[398161973,1765410640270,-526.0,0.00026687,2]
[398161974,1765410640279,-185.15451579,0.00026687,2]
[398161975,1765410640287,-300.0,0.00027765,2]
[398161976,1765410640296,-146.88208307,0.00028727,7]
[398161977,1765410640307,-353.11791693,0.00028727,7]
[398161978,1765410640316,-124.68432556,0.00028884,7]
[398161979,1765410640327,-375.31567444,0.00028884,7]
[398161980,1765410640335,-311.1,0.00029134,2]
[398161981,1765410640345,-322.6107,0.00030503,2]
[398161982,1765410640354,-334.5472959,0.00031872,2]
[398161983,1765410640364,-208.87371841,0.00032058,2]
[398161984,1765410640373,-160.08807114,0.00032877,2]
[398161985,1765410640382,-368.19574783,0.00033241,2]
[398161986,1765410640390,-514.04077809,0.0003419,7]
[398161987,1765410640399,-3151.551,0.00034201,38]
[398161988,1765410640409,-58.93585374,0.00034201,38]
[398161989,1765410640427,-119.48214626,0.00034201,38]
[398161990,1765410640436,-131.88785374,0.0003429,2]
[398161991,1765410640447,-4354.95216445,0.0003429,2]
[398161992,1765410640456,-1728.96755995,0.00035708,2]
[398161993,1765410640465,-5000.0,0.00035869,2]
[398161994,1765410640475,-250.0,0.00035961,2]
[398161995,1765410640484,-412.86,0.00036176,2]
[398161996,1765410640493,-500.0,0.0003672,2]
[398161997,1765410640502,-150.0,0.0003672,2]
[398161998,1765410640510,-150.0,0.0003672,2]
[398161999,1765410640519,-150.0,0.0003672,2]
[398162000,1765410640528,-186.43349316,0.0003672,2]
[398162001,1765410640537,-500.0,0.0003672,2]
[398162002,1765410640546,-152.52134953,0.0003672,2]
[398162003,1765410640555,-150.22473205,0.0003672,2]
[398162004,1765410640564,-150.0,0.0003672,2]
[398162005,1765410640572,-500.0,0.0003672,2]
[398162006,1765410640581,-150.0,0.0003672,2]
[398162007,1765410640590,-500.0,0.0003672,2]
[398162008,1765410640599,-150.0,0.0003672,2]
[398162009,1765410640608,-161.66158552,0.0003672,2]
[398162010,1765410640616,-161.99230191,0.0003672,2]
[398162011,1765410640625,-150.0,0.0003672,2]
[398162012,1765410640634,-150.0,0.0003672,2]
[398162013,1765410640643,-200.0,0.0003672,2]
[398162014,1765410640653,-150.0,0.0003672,2]
[398162015,1765410640662,-500.0,0.0003672,2]
[398162016,1765410640671,-150.0,0.0003672,2]
[398162017,1765410640685,-150.0,0.0003672,2]
[398162018,1765410640694,-500.0,0.0003672,2]
[398162019,1765410640704,-150.0,0.0003672,2]
[398162020,1765410640713,-500.0,0.0003672,2]
[398162021,1765410640722,-500.0,0.0003672,2]
[398162022,1765410640732,-500.0,0.0003672,2]
[398162023,1765410640741,-150.0,0.0003672,2]
[398162024,1765410640750,-500.0,0.0003672,2]
[398162025,1765410640759,-500.0,0.0003672,2]
[398162026,1765410640769,-150.0,0.0003672,2]
[398162027,1765410640778,-150.0,0.0003672,2]
[398162028,1765410640787,-150.0,0.0003672,2]
[398162029,1765410640796,-150.0,0.0003672,2]
[398162030,1765410640806,-150.0,0.0003672,2]
[398162031,1765410640815,-500.0,0.0003672,2]
[398162032,1765410640824,-500.0,0.0003672,2]
[398162033,1765410640833,-500.0,0.0003672,2]
[398162034,1765410640843,-150.0,0.0003672,2]
[398162035,1765410640852,-500.0,0.0003672,2]
[398162036,1765410640861,-150.0,0.0003672,2]
[398162037,1765410640870,-434.05,0.0003672,14]
[398162038,1765410640879,-500.0,0.0003672,2]
[398162039,1765410640888,-500.0,0.0003672,2]
[398162040,1765410640897,-151.0,0.00036731,2]
[398162041,1765410640907,-151.0,0.00036731,2]
[398162042,1765410640916,-151.0,0.00036731,2]
[398162043,1765410640925,-151.0,0.00036731,2]
[398162044,1765410640935,-151.0,0.00036731,2]
[398162045,1765410640944,-151.0,0.00036731,2]
[398162046,1765410640953,-151.0,0.00036731,2]
[398162047,1765410640963,-151.0,0.00036731,2]
[398162048,1765410640971,-151.0,0.00036731,2]
[398162049,1765410640981,-151.0,0.00036731,2]
[398162050,1765410640990,-151.0,0.00036731,2]
[398162051,1765410640999,-151.0,0.00036731,2]
[398162052,1765410641008,-151.0,0.00036731,2]
[398162053,1765410641017,-151.0,0.00036731,2]
[398162054,1765410641026,-151.0,0.00036731,2]
[398162055,1765410641035,-151.0,0.00036731,2]
[398162056,1765410641044,-151.0,0.00036731,2]
[398162057,1765410641052,-151.0,0.00036731,2]
[398162058,1765410641062,-151.0,0.00036731,2]
[398162059,1765410641071,-151.0,0.00036731,2]
[398162060,1765410641080,-35865.49352097,0.00036753,2]
[398162061,1765410641089,-1600.0,0.00036797,120]
[398162062,1765410641098,-500.0,0.00036857,2]
[398162063,1765410641107,-150.0,0.00036857,2]
[398162064,1765410641115,-150.0,0.00036857,2]
[398162065,1765410641124,-201.56637742,0.00036857,2]
[398162066,1765410641133,-500.0,0.00036857,2]
[398162067,1765410641142,-150.0,0.00036857,2]
[398162068,1765410641151,-500.0,0.00036857,2]
[398162069,1765410641160,-159.34435053,0.00036857,2]
[398162070,1765410641169,-500.0,0.00036857,2]
[398162071,1765410641182,-150.43281348,0.00036857,2]
[398162072,1765410641191,-150.93251578,0.00036857,2]
[398162073,1765410641200,-200.0,0.00036857,2]
[398162074,1765410641210,-600.0,0.00036857,2]
[398162075,1765410641219,-150.0,0.00036857,2]
[398162076,1765410641229,-500.0,0.00036857,2]
[398162077,1765410641238,-150.0,0.00036857,2]
[398162078,1765410641247,-500.0,0.00036857,2]
[398162079,1765410641257,-500.0,0.00036857,2]
[398162080,1765410641266,-500.0,0.00036857,2]
[398162081,1765410641275,-500.0,0.00036857,2]
[398162082,1765410641285,-646.06477237,0.00036857,2]
[398162083,1765410641295,-500.0,0.00036857,2]
[398162084,1765410641303,-500.0,0.00036857,2]
[398162085,1765410641312,-500.0,0.00036857,2]
[398162086,1765410641321,-500.0,0.00036857,2]
[398162087,1765410641330,-150.0,0.00036857,2]
[398162088,1765410641340,-500.0,0.00036857,2]
[398162089,1765410641349,-500.0,0.00036857,2]
[398162090,1765410641358,-200.0,0.00036909,2]
[398162091,1765410641369,-500.0,0.00036994,2]
[398162092,1765410641378,-150.0,0.00036994,2]
[398162093,1765410641387,-500.0,0.00036994,2]
[398162094,1765410641396,-150.0,0.00036994,2]
[398162095,1765410641406,-500.0,0.00036994,2]
[398162096,1765410641415,-500.0,0.00036994,2]
[398162097,1765410641425,-150.0,0.00036994,2]
[398162098,1765410641434,-500.0,0.00036994,2]
[398162099,1765410641444,-273.26398331,0.00036994,2]
[398162100,1765410641453,-500.0,0.00036994,2]
[398162101,1765410641463,-500.0,0.00036994,2]
[398162102,1765410641471,-357.74757741,0.00036994,2]
[398162103,1765410641480,-500.0,0.00036994,2]
[398162104,1765410641489,-500.0,0.00036994,2]
[398162105,1765410641498,-500.0,0.00036994,2]